Cogmind - Beta 11.2 @@@ ROGUE MODE // 2022.12.24 @ 15:13:15 // Winter2022/Polymind Player: Terminus Result: Destroyed by as-97469 with Assembled Rifle Performance ------------- Evolutions (1) 500 Regions Visited (5) 1000 Robots Destroyed (18) 90 Value Destroyed (593) 593 Prototype IDs (1) 20 Alien Tech Used (0) 0 Bonus (3406) 3406 TOTAL SCORE: 5029 Bonus ------- Polymind Skill 3406 Cogmind --------- Core Integrity 0/400 Matter 0/0 Energy 16/100 System Corruption 1% Temperature Cool (0) Movement Core (50) Location -9/Exiles Parts ------- > --- POWER (1) -------- (None) > --- PROPULSION (2) --- (None) > --- UTILITY (23) ----- (None) > --- WEAPON (0) ------- (None) > --- INVENTORY (0) ---- (None) Peak State ------------ > --- POWER ------------ Light Neutrino Core > --- PROPULSION ------- Gravmag Array > --- UTILITY ---------- Advanced Transmission Jammer EX Chip 1 EX Chip 1 EX Chip 1 EX Chip 1 EX Chip 1 EX Chip 1 EX Chip 1 EX Chip 1 EX Chip 1 EX Chip 1 EX Chip 2 EX Chip 2 EX Chip 2 EX Chip 2 EX Chip 2 EX Chip 2 EX Chip 2 EX Chip 2 EX Chip 2 EX Chip 2 Improved System Guard Advanced Recalibrator > --- WEAPON ----------- (None) > --- INVENTORY -------- (None) [Rating: 79] Favorites ----------- Power Improved Ion Engine Engine Improved Ion Engine Power Core Light Neutrino Core Propulsion Light Treads Treads Light Treads Leg Carbon-fiber Leg Wheel Compact Wheel Hover Unit Assembled Hover Unit Flight Unit Flight Unit Utility Heat Sink Device Heat Sink Storage Small Storage Unit Processor Improved System Guard Hackware EX Chip 2 Protection Light Armor Plating Weapon Beam Rifle Energy Gun Beam Rifle Ballistic Gun Heavy Assault Rifle Impact Weapon Assembled Maul Build | -11 -10 -10 -9 -9 -9 ------- Run | Scr Mat Min Mat Min Exi Slots Evolved . | . . . . . . Power . | . . . . . . Propulsion . | . . . . . . Utility . | . . . . . . Weapon . | . . . . . . Parts Attached . | . . . . . . Power . | . . . . . . Engine . | . . . . . . Core . | . . . . . . Reactor . | . . . . . . Propulsion . | . . . . . . Treads . | . . . . . . Leg . | . . . . . . Wheel . | . . . . . . Hover . | . . . . . . Flight . | . . . . . . Utility . | . . . . . . Device . | . . . . . . Storage . | . . . . . . Processor . | . . . . . . Hackware . | . . . . . . Protection . | . . . . . . Artifact . | . . . . . . Weapon . | . . . . . . Energy Gun . | . . . . . . Energy Cannon . | . . . . . . Ballistic Gun . | . . . . . . Ballistic Cannon . | . . . . . . Launcher . | . . . . . . Special Weapon . | . . . . . . Impact Weapon . | . . . . . . Slashing Weapon . | . . . . . . Piercing Weapon . | . . . . . . Special Melee Weapon . | . . . . . . Unidentified Prototypes . | . . . . . . Parts Lost 5 | . . . 3 . 2 Power 1 | . . . 1 . . Propulsion . | . . . . . . Utility 3 | . . . 1 . 2 Weapon 1 | . . . 1 . . Highest Loss Streak 3 | . . . 3 . 2 To Critical Strikes . | . . . . . . Average Slot Usage (%) 98 | . 100 100 99 71 88 Engine 13 | . 20 16 12 3 15 Treads 17 | . . . 23 . . Leg 4 | . . 25 1 . . Wheel 3 | . 40 8 . . . Flight 1 | . . . . 7 31 Device 24 | . 20 30 25 . 1 Storage 1 | . 20 4 . . . Protection 8 | . . . 11 . . Energy Gun 10 | . . 12 12 . . Ballistic Gun 9 | . . . 11 3 15 Naked Turns 31 | . . 1 5 14 11 Heaviest Build 18 | 9 9 16 18 18 10 Greatest Support 40 | 32 32 32 40 40 20 Greatest Overweight (x) . | . . . . . . Average Overweight (x) . | . . . . . . Largest Inventory Capacity 4 | 4 4 4 1 1 1 Average Capacity 1 | . 4 1 . . . Most Carried 4 | . 4 4 . . . Average Carried . | . 1 . . . . Final Capacity 4 | 4 4 1 1 . . Final Carried 4 | . 4 . . . . Class Distribution -------------------- 72% | Sentry 14% | Grunt 8% | Recycler Dominant Class ---------------- Recycler | -10/Materials Grunt | -10/Mines Sentry | -9/Materials Assembled | -9/Mines Swarmer | -9/Exiles Resources | -11 -10 -10 -9 -9 -9 ----------- Run | Scr Mat Min Mat Min Exi Matter Collected 42 | . . . 42 . . Remotely . | . . . . . . Salvage Created 467 | . . 108 359 . . Parts 26 | . . 10 16 . . Haulers Intercepted . | . . . . . . Recyclers Shooed . | . . . . . . Parts Field Recycled . | . . . . . . Retrieved Matter . | . . . . . . Parts Self-Destructed . | . . . . . . Prevented . | . . . . . . Kills | -11 -10 -10 -9 -9 -9 ------- Run | Scr Mat Min Mat Min Exi Combat Hostiles Destroyed 17 | . . 7 10 . . Guns 15 | . . 5 10 . . AOE 2 | . . 2 . . . Classes Destroyed 4 | . . 2 2 . . Worker 1 | . . . 1 . . Swarmer 6 | . . 3 3 . . Grunt 6 | . . 4 2 . . Sentry 5 | . . . 5 . . Best Kill Streak 3 | . . 3 3 . . Combat Bots Only 3 | . . 3 3 . . Max Kills in Single Turn 2 | . . 2 1 . . Gunslinging . | . . . . . . Exploded 2 | . . 2 . . . Melee . | . . . . . . Uniques/NPCs Destroyed . | . . . . . . Combat | -11 -10 -10 -9 -9 -9 -------- Run | Scr Mat Min Mat Min Exi Damage Taken 1296 | . 6 136 704 134 316 Core 454 | . . 46 89 101 218 Absorbed by Shields . | . . . . . . Core Remaining (%) 90 | 100 . 81 . . . Volleys Fired 61 | . . 25 36 . . Largest 2 | . . 1 2 . . Hottest 79 | . . 75 79 . . Shots Fired 81 | . . 25 56 . . Gun 81 | . . 25 56 . . Cannon . | . . . . . . Launcher . | . . . . . . Special . | . . . . . . Kinetic 20 | . . . 20 . . Thermal 61 | . . 25 36 . . Explosive . | . . . . . . Electromagnetic . | . . . . . . Robot Hit Streak 22 | . . 4 22 . . Robot Miss Streak 4 | . . 2 4 . . Penetration Max . | . . . . . . Secondary Targets . | . . . . . . Shots Hit Robots 55 | . . 13 42 . . Core Hits 24 | . . 7 17 . . Critical Kills . | . . . . . . Critical Parts Destroyed . | . . . . . . Critical Strikes 4 | . . 2 2 . . Burn 4 | . . 2 2 . . Melee Attacks . | . . . . . . Impact . | . . . . . . Slashing . | . . . . . . Piercing . | . . . . . . Sneak Attacks . | . . . . . . Combat Hostiles . | . . . . . . Follow-up Attacks . | . . . . . . Damage Inflicted 1223 | . 12 488 723 . . Guns 985 | . . 272 713 . . Cannons . | . . . . . . Explosions 216 | . . 216 . . . Melee . | . . . . . . Ramming 22 | . 12 . 10 . . Kinetic 264 | . . . 264 . . Thermal 937 | . . 488 449 . . Explosive . | . . . . . . Electromagnetic . | . . . . . . Impact . | . . . . . . Slashing . | . . . . . . Piercing . | . . . . . . Highest Corruption . | . . . . . . Average Corruption . | . . . . . . Corruption Purged . | . . . . . . Corruption Blocked . | . . . . . . Overload Shots . | . . . . . . Overflow Damage 5 | . . 5 . . . Projectiles . | . . . . . . Explosions 5 | . . 5 . . . Melee . | . . . . . . Knockbacks . | . . . . . . Impact . | . . . . . . Kinetic . | . . . . . . Secondary . | . . . . . . Self-Inflicted Damage 6 | . 6 . . . . Shots . | . . . . . . Rammed 2 | . 1 . 1 . . Targets Rammed 2 | . 1 . 1 . . Kicked . | . . . . . . Crushed . | . . . . . . Highest Temperature 105 | . . . 105 . . Average Temperature 30 | . . . 30 . . Received Heat Transfer 263 | . . . 243 . 20 Siege Activations . | . . . . . . Robots Corrupted . | . . . . . . Combat Hostiles . | . . . . . . Parts Fried . | . . . . . . Impact Corruptions . | . . . . . . Robots Melted . | . . . . . . Combat Hostiles . | . . . . . . Parts Melted 5 | . . . 5 . . Heat Transferred 2063 | . . 879 1184 . . Parts Sabotaged . | . . . . . . Parts Stolen . | . . . . . . Parts Stripped . | . . . . . . Power Chain Reactions . | . . . . . . Missiles Intercepted . | . . . . . . Alert | -11 -10 -10 -9 -9 -9 ------- Run | Scr Mat Min Mat Min Exi Peak Influence 374 | . 201 374 234 83 . Initial 114 | . . 78 114 27 . Average 86 | . 80 207 65 41 . Maximum Alert Level 1 | . 1 1 1 . . Low Security (%) 83 | 100 87 52 88 100 . Level 1 16 | . 12 47 11 . . Level 2 . | . . . . . . Level 3 . | . . . . . . Level 4 . | . . . . . . Level 5 . | . . . . . . High Security . | . . . . . . Max Security . | . . . . . . Squads Dispatched 3 | . . 1 2 . . Investigation 1 | . . 1 . . . Extermination . | . . . . . . Reinforcement 2 | . . . 2 . . Assault . | . . . . . . Garrison . | . . . . . . Intercept . | . . . . . . Searches Triggered . | . . . . . . Construction Impeded . | . . . . . . Haulers Reinforced . | . . . . . . Active Scanning Responses . | . . . . . . Cargo Convoy Interrupts . | . . . . . . Stealth | -11 -10 -10 -9 -9 -9 --------- Run | Scr Mat Min Mat Min Exi Distress Signals 2 | . . . 2 . . Communications Jammed . | . . . . . . Distress Signals . | . . . . . . Times Spotted 95 | . 3 6 18 49 19 Peak Tracking Total 21 | . 2 3 4 21 13 Tactical Retreats 2 | . . . . 1 1 Traps | -11 -10 -10 -9 -9 -9 ------- Run | Scr Mat Min Mat Min Exi Traps Triggered . | . . . . . . Indirectly . | . . . . . . Trap Hack Attempts . | . . . . . . Triggered . | . . . . . . Disarmed . | . . . . . . Reprogrammed . | . . . . . . Reused . | . . . . . . Traps Extracted . | . . . . . . Installed . | . . . . . . Triggered . | . . . . . . Machines | -11 -10 -10 -9 -9 -9 ---------- Run | Scr Mat Min Mat Min Exi Machines Disabled 9 | . . 9 . . . Max in Single Turn 9 | . . 9 . . . Machines Sabotaged . | . . . . . . Garrisons Compromised . | . . . . . . Overloaded Fab Kills . | . . . . . . Hacking | -11 -10 -10 -9 -9 -9 --------- Run | Scr Mat Min Mat Min Exi Machines Accessed 11 | . 2 1 7 . 1 Terminals 9 | . 2 . 7 . . Fabricators . | . . . . . . Repair Stations . | . . . . . . Recycling Units . | . . . . . . Scanalyzers . | . . . . . . Garrison Access . | . . . . . . Total Hacks 23 | . 6 1 12 . 4 Successful 19 | . 5 1 9 . 4 Failed 4 | . 1 . 3 . . Catastrophic . | . . . . . . Database Lockouts . | . . . . . . Manual 17 | . 6 . 11 . . Terminals 18 | . 6 . 12 . . Fabricators . | . . . . . . Repair Stations . | . . . . . . Recycling Units . | . . . . . . Scanalyzers . | . . . . . . Garrison Access . | . . . . . . Terminal Hacks 12 | . 3 1 4 . 4 Record 4 | . . . . . 4 Open Door 1 | . . 1 . . . Branch Access Points 1 | . . . 1 . . Terminal Index 2 | . 1 . 1 . . Zone Layout 4 | . 2 . 2 . . Fabricator Hacks . | . . . . . . Repair Station Hacks . | . . . . . . Recycling Unit Hacks . | . . . . . . Scanalyzer . | . . . . . . Garrison Access Hacks . | . . . . . . Unauthorized Hacks 7 | . 2 . 5 . . Terminals 7 | . 2 . 5 . . Assimilate 1 | . . . 1 . . Botnet 6 | . 2 . 4 . . Fabricators . | . . . . . . Repair Stations . | . . . . . . Recycling Units . | . . . . . . Scanalyzers . | . . . . . . Garrison Access . | . . . . . . Data Cores Recovered . | . . . . . . Used . | . . . . . . Hacking Detections 6 | . . . 6 . . Full Trace Events . | . . . . . . Feedback Events . | . . . . . . Feedback Blocked . | . . . . . . Robot Schematics Acquired . | . . . . . . Robots Built . | . . . . . . Authchips . | . . . . . . Time . | . . . . . . Total Robot Build Rating . | . . . . . . Part Schematics Acquired . | . . . . . . Parts Built . | . . . . . . Authchips . | . . . . . . Time . | . . . . . . Total Part Build Rating . | . . . . . . Parts Repaired . | . . . . . . Time . | . . . . . . Parts Recycled . | . . . . . . Recycled Matter . | . . . . . . Retrieved Matter . | . . . . . . Retrieved Components . | . . . . . . Parts Scanalyzed . | . . . . . . Part Schematics Acquired . | . . . . . . Parts Damaged . | . . . . . . Bothacking | -11 -10 -10 -9 -9 -9 ------------ Run | Scr Mat Min Mat Min Exi Used RIF Installer . | . . . . . . Robots Hacked 3 | . . . 2 1 . Non-combat . | . . . . . . Combat 3 | . . . 2 1 . Robot Hacks Applied 3 | . . . 2 1 . find_shortcuts 3 | . . . 2 1 . Relay Couplers Released . | . . . . . . Fabnet Peak Effective % . | . . . . . . Robots Rewired . | . . . . . . Allies Hacked . | . . . . . . Hacks Repelled . | . . . . . . Allies | -11 -10 -10 -9 -9 -9 -------- Run | Scr Mat Min Mat Min Exi Total Allies 1 | . . . 1 . . Largest Group 1 | . . . 1 . . Highest-Rated Group 10 | . . . 10 . . Highest-Rated Ally 10 | . . . 10 . . Total Orders . | . . . . . . Ally Attacks . | . . . . . . Total Damage . | . . . . . . Kills . | . . . . . . Allies Corrupted . | . . . . . . Allies Melted . | . . . . . . Intel | -11 -10 -10 -9 -9 -9 ------- Run | Scr Mat Min Mat Min Exi Robot Analysis Total 5 | 1 . 1 1 2 . Derelict Logs Recovered 2 | . . 2 . . . Drone Launches . | . . . . . . Drone Recoveries . | . . . . . . Exploration | -11 -10 -10 -9 -9 -9 ------------- Run | Scr Mat Min Mat Min Exi Turns Passed 3728 | 13 202 540 2791 67 115 Spaces Moved 1478 | 23 196 419 446 124 270 Core 70 | 19 . 1 6 22 22 Treads 387 | . . . 386 1 . Legs 356 | . . 302 54 . . Wheels 316 | 4 196 116 . . . Hover 113 | . . . . 62 51 Flight 236 | . . . . 39 197 Fastest Speed 37 | 50 100 50 50 37 37 Average Speed 105 | 58 100 114 153 51 42 Slowest Speed 160 | 100 100 120 160 160 60 Overloaded Moves . | . . . . . . Propulsion Burnouts . | . . . . . . Robots Hopped 2 | . . . . 2 . Cave-ins Triggered . | . . . . . . Exploration Rate (%) 47 | 2 40 87 49 46 58 Regions Visited 5 Branch Regions 3 Pre-discovered Areas 1 | . . . . . 1 Known Exits Taken 1 | . . . 1 . . Unknown Exits Taken 4 | 1 1 1 . 1 . Scrap Searched 1 | . . 1 . . . Spaces Dug . | . . . . . . Terrain Destroyed 43 | . . 43 . . . Melee . | . . . . . . Projectile . | . . . . . . AOE 43 | . . 43 . . . Terrain Rammed . | . . . . . . Walls Destroyed . | . . . . . . Machines Disabled . | . . . . . . Actions | -11 -10 -10 -9 -9 -9 --------- Run | Scr Mat Min Mat Min Exi Total 3570 | 22 204 455 2495 124 270 Wait 2028 | . . 12 2013 3 . Move 1469 | 22 195 418 445 119 270 Hop 2 | . . . . 2 . Pick Up 6 | . 6 . . . . Fast Attach . | . . . . . . Attach . | . . . . . . Detach . | . . . . . . Swap . | . . . . . . Drop 2 | . 2 . . . . Fire 61 | . . 25 36 . . Melee . | . . . . . . Ram 1 | . 1 . . . . Kick . | . . . . . . Crush 1 | . . . 1 . . Escape Stasis . | . . . . . . Rewire . | . . . . . . Trap . | . . . . . . Miscellaneous . | . . . . . . Route ------- -11/Scrapyard -10/Materials -10/Mines -9/Materials (discovered 2 exits: [*Mat] / *Min) -9/Mines -9/Exiles History --------- Turn | Location | Event 4 | -11/Scrapyard | Discovered new exit (range 16) 14 | -11/Scrapyard | Entered Materials 66 | -10/Materials | Discovered new exit (range 15) 216 | -10/Materials | Entered Mines 308 | -10/Mines | Learned Materials emergency access door positions 316 | -10/Mines | Found a hidden stash of uninstalled traps 626 | -10/Mines | Met a Derelict shopkeep closing up shop 753 | -10/Mines | Discovered new exit (range 3) 756 | -10/Mines | Entered Materials 2645 | -9/Materials | Identified exit to Mines 3184 | -9/Materials | Discovered new exit (range 10) 3284 | -9/Materials | Lost 3 parts (1p1u1w) 3547 | -9/Materials | Entered Mines 3548 | -9/Mines | Assembled infested the area 3613 | -9/Mines | Deemed a non-threat by the Exiles lab entrance 3613 | -9/Mines | Discovered new exit (range 5) 3614 | -9/Mines | Entered Exiles 3623 | -9/Exiles | Met 8R-AWN 3630 | -9/Exiles | Met EX-HEX 3643 | -9/Exiles | Met EX-DEC 3650 | -9/Exiles | Learned location of Zion (-6) 3659 | -9/Exiles | Met EX-BIN 3689 | -9/Exiles | Attacked by the Exiles 3691 | -9/Exiles | Core integrity fell below 50% 3696 | -9/Exiles | Took control of EX-HEX 3697 | -9/Exiles | Core integrity fell below 20% 3729 | -9/Exiles | Destroyed by as-97469 with Assembled Rifle Last Messages --------------- time, folks! 03689_ Acquired 3 Protomatter. 03690_ HV Slug penetrates Wall. 03690_ Penetrated by HV Slug. 03693_ HV Slug penetrates as-02788. 03693_ as-52409 suffers critical hit (Destroy). 03693_ as-52409 destroyed. 03693_ Penetrated by HV Slug. 03693_ HV Slug penetrates as-02788. 03693_ as-02788 suffers critical hit (Destroy). 03693_ as-02788 destroyed. 03694_ Acquired 12 Protomatter. 03696_ Took control of EX-HEX. 03700_ EX Chip 1 destroyed. 03708_ EX-BIN: "I just want to science!" 03711_ EX Chip 2 destroyed. 03711_ Critical hit (Blast). 03712_ EX-BIN: "You can't kill me, my evil twin will get revenge!" 03712_ EX-BIN destroyed. 03727_ Released control of EX-HEX. Map ----- +----------------------------------------------------+ | ?????????????#"""" !!! % | | ?????????????## ! | | ??????????????#" " "" | | ??????????????#"""" ""## ##""" " " | | ??????????????#"" ""#### ######""" | | ??????????????#" """"##??# #????###"" | | ??????????????#""" """#???# #??????### | | ??????????????## ""##???! ????????? | | ???????????????#"" """##???#" ???????? | | ???????????????##""" ##????#" ???????? | | ????????????????##"""" ##?????#!!""!"??????? | | ?????????????????### #???????######??????? | | ???????????????????##### ##???????????????????? | | ???????????????????????## #????????????????????? | | ????????????????????????# #????????????????????? | | ????????????????????????# #????????????????????? | | ????????????????????????# #????????????????????? | | ????????????????????????# #????????????????????? | | ????????????????????????# #????????????????????? | | ????????????????????????# #????????????????????? | | ????????????????????????# #????????????????????? | | ????????????????????????# a #????????????????????? | | ????????????????????????# az#????????????????????? | | ??????????????????"###### a #####????????????????? | | ?????????????""" """"""c """""""#?????????????? | | ?????????????"" z c @ "#?????????????? | | ?????????? " ??????????? | | ?????????? z z " "??????????? | | ??????????? " "??????????? | | ??????????? "" #""???????????? | | ????????????""" " """" """""#?????????????? | | ?????????????###"""########"""######?????????????? | | ???????????????" ?????????? "??????????????????? | | ??????????????????????????? """?????????????????? | | ???????????????????????????"""""?????????????????? | | ??????????????????????????? ""???????????????????? | | ?????????????????????????????????????????????????? | | ?????????????????????????????????????????????????? | | ?????????????????????????????????????????????????? | | ?????????????????????????????????????????????????? | | ?????????????????????????????????????????????????? | | ?????????????????????????????????????????????????? | | | | | | | | | | | | | | | | | +----------------------------------------------------+ Best States ------------- Heat Dissipation 51 Energy Generation 34 Energy Capacity 215 Matter Stores 100 Matter Capacity 100 Sight Range 16 Terrain Scan Density 10 Jamming Range 16 Corruption Containment 12 Armor Coverage 150 Resistance: EX 50 Resistance: EM 90 Resistance: I 25 Evasion (%) 62 Recoil Reduction 2 Offensive Hacking 70 Defensive Hacking 70 Item Schematics ----------------- None Robot Schematics ------------------ None Fabricated ------------ Nothing Alien Tech Used ----------------- None Achievements -------------- None Challenges ------------ None Polymind | -11 -10 -10 -9 -9 -9 ---------- Run | Scr Mat Min Mat Min Exi Robots Controlled 7 | 1 . 1 2 2 1 Combat Hostiles 4 | . . . 2 2 . Allies 1 | . . 1 . . . Classes Controlled 6 | 1 . 1 1 2 1 Average Host Suspicion 58 | . 75 74 56 41 . Unsuspicious Activity 2014 | 2 6 7 1976 8 15 Returns to Shadow 3 | . . . 3 . . Fuzzy Dispatches . | . . . . . . Protomatter Created 240 | . . 57 69 88 26 Used 117 | 5 . 14 46 22 30 Decayed . | . . . . . . Highest Spend 30 | 5 . 14 23 16 30 Top 5 Hosts by Kills: 2S-N3C(g) (-10/Mines: 10) Game ------ Seed VariableHypercooledStreamer Manual? 0 Play Time 00:11:46 Cumulative 1644.4 hours Start 2022.12.24 @ 15:02:43 End 2022.12.24 @ 15:13:15 Sessions 1 Manual Loads 0 Difficulty Rogue Special Mode Winter2022/Polymind Game No. 583 Rogue 583 Adventurer 0 Explorer 0 Win Type - Total 122 Types 26/13/51/7/1/2/20/1/1 Lore% 98 Gallery% 97 Achievement% 87 Wizard Run 0 Options --------- ASCII 0 Keyboard 0 Movement Numpad Keybinds 0 Fullscreen 1 Font 18/SmallcapsGlow Map View 76x50 Tactical HUD 1 Map Filters NONE Filters NONE Steam 1 RUN: 007d1529-f19a-4c64-a877-f0111064ce25